Cogmind - Beta 14 @@@ ROGUE MODE // 2024.09.23 @ 23:41:36 Player: Kitarik02 Result: Destroyed by XG-MYL(R) with Subdweller Machine Gun Performance ------------- Evolutions (0) 0 Regions Visited (2) 400 Robots Destroyed (16) 80 Value Destroyed (463) 463 Prototype IDs (4) 80 Alien Tech Used (0) 0 Bonus (0) 0 TOTAL SCORE: 1023 Bonus ------- None Cogmind --------- Core Integrity 0/250 Matter 208/300 Energy 125/125 System Corruption 2% Temperature Cool (0) Movement Flying (275) Ox3 Location -10/Subcaves Parts ------- > --- POWER (1) -------- Light Ion Engine > --- PROPULSION (2) --- VTOL Module > --- UTILITY (2) ------ Heat Sink Medium Storage Unit > --- WEAPON (2) ------- Flail > --- INVENTORY (10) --- EM Pulse Gun Small Laser Assault Rifle Improved Light Cannon Datajack Peak State ------------ > --- POWER ------------ Light Nuclear Core > --- PROPULSION ------- VTOL Module VTOL Module > --- UTILITY ---------- Heat Sink Medium Storage Unit > --- WEAPON ----------- Rocket Launcher Flail > --- INVENTORY -------- Light Ion Engine EM Pulse Gun Small Laser Assault Rifle Improved Light Cannon Datajack [Rating: 13] Favorites ----------- Power Light Nuclear Core Engine Ion Engine Power Core Light Nuclear Core Propulsion Aluminum Leg Treads Light Treads Leg Aluminum Leg Wheel Wheel Flight Unit VTOL Module Utility Medium Storage Unit Device Heat Sink Storage Medium Storage Unit Weapon Assault Rifle Energy Gun Small Laser Ballistic Gun Assault Rifle Ballistic Cannon Improved Light Cannon Launcher Rocket Launcher Impact Weapon Flail Special Melee Weapon Datajack Build | -11 -10 -10 ------- Run | Yrd Mat Sub Slots Evolved . | . . . Power . | . . . Propulsion . | . . . Utility . | . . . Weapon . | . . . Parts Attached 42 | 6 33 3 Power 5 | 1 3 1 Engine 3 | 1 1 1 Core 2 | . 2 . Reactor . | . . . Propulsion 11 | 2 9 . Treads 1 | . 1 . Leg 4 | . 4 . Wheel 3 | 2 1 . Hover . | . . . Flight 3 | . 3 . Utility 5 | 1 4 . Device 1 | . 1 . Storage 4 | 1 3 . Processor . | . . . Hackware . | . . . Protection . | . . . Artifact . | . . . Weapon 21 | 2 17 2 Energy Gun 2 | . 2 . Energy Cannon . | . . . Ballistic Gun 5 | 2 3 . Ballistic Cannon 3 | . 3 . Launcher 4 | . 3 1 Special Weapon . | . . . Impact Weapon 5 | . 4 1 Slashing Weapon . | . . . Piercing Weapon . | . . . Special Melee Weapon 2 | . 2 . Unidentified Prototypes . | . . . Parts Lost 6 | . 3 3 Power 1 | . . 1 Propulsion 3 | . 2 1 Utility . | . . . Weapon 2 | . 1 1 Highest Loss Streak 3 | . 3 3 To Critical Strikes . | . . . Average Slot Usage (%) 96 | . 96 96 Engine 1 | . 1 1 Core 12 | . 12 12 Leg 18 | . 21 . Wheel 1 | . 1 . Flight 5 | . 2 26 Device 2 | . 1 14 Storage 23 | . 25 14 Energy Gun 5 | . 6 . Ballistic Gun 11 | . 12 . Ballistic Cannon 3 | . 4 . Launcher 1 | . . 12 Impact Weapon 4 | . 3 12 Peak Build Rating 13 | 6 12 13 Average Rating 9 | 2 9 12 On Entrance 6 | . 6 12 Naked Turns . | . . . Heaviest Build 26 | 13 26 22 Greatest Support 20 | 20 20 8 Greatest Overweight (x) 8 | . 8 3 Average Overweight (x) 1 | . 1 1 Largest Inventory Capacity 25 | 8 25 10 Average Capacity 9 | 5 9 10 Most Carried 10 | 6 10 8 Average Carried 6 | 2 6 6 Final Capacity 10 | 8 10 10 Final Carried 7 | 6 7 5 Class Distribution -------------------- 79% | Mutant 20% | Scavenger-Mutant Dominant Class ---------------- Mutant | -10/Materials Mutant | -10/Subcaves Resources | -11 -10 -10 ----------- Run | Yrd Mat Sub Matter Collected 732 | 238 494 . Remotely . | . . . Salvage Created 402 | . 402 . Parts 25 | . 25 . Haulers Intercepted . | . . . Recyclers Shooed . | . . . Parts Field Recycled . | . . . Retrieved Matter . | . . . Parts Self-Destructed . | . . . Prevented . | . . . Kills | -11 -10 -10 ------- Run | Yrd Mat Sub Combat Hostiles Destroyed 14 | . 13 1 Melee 2 | . 2 . Guns 2 | . 2 . AOE 7 | . 6 1 Classes Destroyed 5 | . 4 1 Builder 1 | . 1 . Watcher 1 | . 1 . Swarmer 4 | . 4 . Grunt 9 | . 9 . Subdweller 1 | . . 1 Best Kill Streak 3 | . 3 1 Combat Bots Only 3 | . 3 1 Max Kills in Single Turn 3 | . 3 1 Gunslinging . | . . . Exploded 3 | . 3 1 Melee 1 | . 1 . Uniques/NPCs Destroyed . | . . . Combat | -11 -10 -10 -------- Run | Yrd Mat Sub Hostile Shots Fired 96 | . 76 20 Missed 13 | . 8 5 Damage Taken 1221 | . 895 326 Core 257 | . 195 62 Absorbed by Shields . | . . . Regen/Repaired (Parts) 37 | . 37 . Core Remaining (%) 100 | 100 . . Volleys Fired 29 | . 23 6 Largest 2 | . 2 1 Hottest 60 | . 60 33 Shots Fired 44 | . 37 7 Gun 31 | . 31 . Cannon 1 | . 1 . Launcher 12 | . 5 7 Special . | . . . Kinetic 28 | . 28 . Thermal 3 | . 3 . Explosive 12 | . 5 7 Electromagnetic 1 | . 1 . Robot Hit Streak 5 | . 5 3 Robot Miss Streak 4 | . 2 4 Penetration Max . | . . . Secondary Targets 1 | . 1 . Max Gunslinging Chain 1 | . 1 . Shots Hit Robots 45 | . 38 7 Core Hits 20 | . 19 1 Critical Kills . | . . . Critical Parts Destroyed 3 | . 3 . Critical Strikes 3 | . 3 . Smash 3 | . 3 . Melee Attacks 27 | . 21 6 Impact 20 | . 14 6 Slashing . | . . . Piercing . | . . . Sneak Attacks 4 | . 4 . Combat Hostiles . | . . . Follow-up Attacks . | . . . Damage Inflicted 1552 | . 1087 465 Guns 200 | . 200 . Cannons . | . . . Explosions 748 | . 442 306 Melee 603 | . 444 159 Ramming 1 | . 1 . Kinetic 153 | . 153 . Thermal 35 | . 35 . Explosive 693 | . 387 306 Electromagnetic 67 | . 67 . Impact 603 | . 444 159 Slashing . | . . . Piercing . | . . . Highest Corruption 2 | . 2 2 Average Corruption 2 | . 2 2 Corruption Purged . | . . . Corruption Blocked . | . . . Effects 17 | . 15 2 Message Errors 5 | . 5 . Matter Fused 5 | . 5 . Heat Flow Errors 2 | . 1 1 Energy Discharges 3 | . 3 . Misfires 1 | . . 1 Alerts 1 | . 1 . Overload Shots . | . . . Overflow Damage 149 | . 149 . Projectiles . | . . . Explosions . | . . . Melee 149 | . 149 . Knockbacks 5 | . 5 . Impact 3 | . 3 . Kinetic . | . . . Secondary 2 | . 2 . Self-Inflicted Damage 34 | . 34 . Shots 3 | . 3 . Rammed . | . . . Targets Rammed 1 | . 1 . Kicked 1 | . 1 . Crushed . | . . . Highest Temperature 166 | . 96 166 Average Temperature 40 | . 35 99 Received Heat Transfer 471 | . 471 . Siege Activations . | . . . Robots Corrupted 3 | . 3 . Combat Hostiles 3 | . 3 . Parts Fried 5 | . 5 . Impact Corruptions 5 | . 5 . Robots Melted . | . . . Combat Hostiles . | . . . Parts Melted . | . . . Heat Transferred 75 | . 75 . Parts Sabotaged . | . . . Parts Stolen . | . . . Parts Stripped . | . . . Power Chain Reactions 1 | . 1 . Alert | -11 -10 -10 ------- Run | Yrd Mat Sub Peak Influence 140 | . 140 . Initial . | . . . Average 38 | . 40 . Maximum Alert Level . | . . . Low Security (%) 100 | 100 100 . Level 1 . | . . . Level 2 . | . . . Level 3 . | . . . Level 4 . | . . . Level 5 . | . . . High Security . | . . . Max Security . | . . . Squads Dispatched 2 | . 2 . Investigation 1 | . 1 . Extermination . | . . . Reinforcement 1 | . 1 . Assault . | . . . Garrison . | . . . Intercept . | . . . Searches Triggered . | . . . Construction Impeded . | . . . Haulers Reinforced . | . . . Active Scanning Responses . | . . . Cargo Convoy Interrupts . | . . . Stealth | -11 -10 -10 --------- Run | Yrd Mat Sub Distress Signals 3 | . 3 . Communications Jammed . | . . . Distress Signals . | . . . Times Spotted 17 | . 15 2 Peak Tracking Total 3 | . 3 2 Tactical Retreats . | . . . Traps | -11 -10 -10 ------- Run | Yrd Mat Sub Traps Triggered 3 | . 3 . Indirectly . | . . . Trap Hack Attempts . | . . . Triggered . | . . . Disarmed . | . . . Reprogrammed 5 | . 5 . Reused . | . . . Traps Extracted . | . . . Installed . | . . . Triggered . | . . . Machines | -11 -10 -10 ---------- Run | Yrd Mat Sub Machines Disabled 3 | . 3 . Max in Single Turn 2 | . 2 . Machines Repaired . | . . . Machines Dismantled . | . . . Machines Sabotaged . | . . . Overloaded Fab Kills . | . . . Hacking | -11 -10 -10 --------- Run | Yrd Mat Sub Machines Accessed 8 | . 8 . Terminals 5 | . 5 . Fabricators . | . . . Repair Stations 1 | . 1 . Recycling Units 2 | . 2 . Scanalyzers . | . . . Garrison Access . | . . . Total Hacks 34 | . 34 . Successful 26 | . 26 . Failed 8 | . 8 . Catastrophic . | . . . Database Lockouts . | . . . Manual 1 | . 1 . Terminals 19 | . 19 . Fabricators . | . . . Repair Stations 2 | . 2 . Recycling Units 13 | . 13 . Scanalyzers . | . . . Garrison Access . | . . . Terminal Hacks 13 | . 13 . Record 5 | . 5 . Robot Analysis 1 | . 1 . Prototype ID Bank 2 | . 2 . Alert Level 1 | . 1 . Locate Traps 1 | . 1 . Reprogram Traps 1 | . 1 . Maintenance Status 1 | . 1 . Zone Layout 1 | . 1 . Fabricator Hacks . | . . . Repair Station Hacks 2 | . 2 . Scan Component 1 | . 1 . Repair 1 | . 1 . Recycling Unit Hacks 11 | . 11 . Report Inventory 1 | . 1 . Retrieve Matter 8 | . 8 . Retrieve Components 2 | . 2 . Scanalyzer . | . . . Garrison Access Hacks . | . . . Unauthorized Hacks . | . . . Terminals . | . . . Fabricators . | . . . Repair Stations . | . . . Recycling Units . | . . . Scanalyzers . | . . . Garrison Access . | . . . Data Cores Recovered . | . . . Used . | . . . Hacking Detections 8 | . 8 . Full Trace Events 1 | . 1 . Feedback Events . | . . . Feedback Blocked . | . . . Robot Schematics Acquired . | . . . Robots Built . | . . . Authchips . | . . . Time . | . . . Total Robot Build Rating . | . . . Part Schematics Acquired . | . . . Parts Built . | . . . Authchips . | . . . Time . | . . . Total Part Build Rating . | . . . Parts Repaired 1 | . 1 . Time 38 | . 38 . Parts Recycled . | . . . Recycled Matter . | . . . Retrieved Matter . | . . . Retrieved Components 1 | . 1 . Parts Scanalyzed . | . . . Part Schematics Acquired . | . . . Parts Damaged . | . . . Bothacking | -11 -10 -10 ------------ Run | Yrd Mat Sub Used RIF Installer . | . . . Robots Hacked 2 | . 2 . Non-combat 2 | . 2 . Combat . | . . . Robot Hacks Applied 3 | . 3 . parse_system 1 | . 1 . no_distress 1 | . 1 . check_alert 1 | . 1 . Relay Couplers Released . | . . . Fabnet Peak Effective % . | . . . Robots Rewired . | . . . Allies Hacked . | . . . Hacks Repelled . | . . . Allies | -11 -10 -10 -------- Run | Yrd Mat Sub Total Allies . | . . . Largest Group . | . . . Highest-Rated Group . | . . . Highest-Rated Ally . | . . . Total Orders . | . . . Ally Attacks . | . . . Total Damage . | . . . Kills . | . . . Allies Corrupted . | . . . Allies Melted . | . . . Intel | -11 -10 -10 ------- Run | Yrd Mat Sub Robot Analysis Total 1 | . 1 . Derelict Logs Recovered 1 | . . 1 Drone Launches . | . . . Drone Recoveries . | . . . Exploration | -11 -10 -10 ------------- Run | Yrd Mat Sub Turns Passed 2010 | 91 1697 222 Spaces Moved 918 | 55 758 105 Core 14 | 7 7 . Treads 18 | . 18 . Legs 549 | . 549 . Wheels 136 | 48 88 . Hover . | . . . Flight 201 | . 96 105 Fastest Speed 50 | 50 80 112 Average Speed 172 | 76 177 181 Slowest Speed 450 | 80 450 275 Overloaded Moves . | . . . Propulsion Burnouts . | . . . Robots Hopped . | . . . Cave-ins Triggered . | . . . Exploration Rate (%) 38 | 4 99 13 Regions Visited 2 Branch Regions 1 Pre-discovered Areas 2 | . . 2 Known Exits Taken . | . . . Unknown Exits Taken 2 | 1 1 . Scrap Searched . | . . . Spaces Dug . | . . . Terrain Destroyed 75 | . 49 26 Melee . | . . . Projectile . | . . . AOE 75 | . 49 26 Terrain Rammed . | . . . Walls Destroyed . | . . . Machines Disabled . | . . . Actions | -11 -10 -10 --------- Run | Yrd Mat Sub Total 1273 | 103 1047 123 Wait 210 | 31 179 . Move 916 | 54 757 105 Hop . | . . . Pick Up 29 | 12 17 . Fast Attach 2 | . 2 . Attach 24 | 6 15 3 Detach 7 | . 5 2 Swap 16 | . 16 . Drop 12 | . 11 1 Fire 29 | . 23 6 Melee 27 | . 21 6 Ram . | . . . Kick 1 | . 1 . Crush . | . . . Escape Stasis . | . . . Rewire . | . . . Trap . | . . . Miscellaneous . | . . . Route ------- -11/Scrapyard -10/Materials (discovered 6 exits: [*Mat x3] / [*Min x2] / [*Sub]) -10/Subcaves History --------- Turn | Location | Event 50 | -11/Scrapyard | Discovered new exit (range 15) 92 | -11/Scrapyard | Entered Materials 222 | -10/Materials | Core integrity fell below 50% 244 | -10/Materials | Lost 3 parts (2n1w) 309 | -10/Materials | Discovered new exit (range 11) 435 | -10/Materials | Discovered new exit (range 16) 536 | -10/Materials | Repaired Lgt. Nuclear Core 755 | -10/Materials | Discovered new exit (range 12) 1037 | -10/Materials | Build established: Mutant 1050 | -10/Materials | Discovered new exit (range 16) 1296 | -10/Materials | Discovered new exit (range 15) 1506 | -10/Materials | Discovered new exit (range 13) 1789 | -10/Materials | Entered Subcaves 1859 | -10/Subcaves | Learned location of Zion (-7) 1859 | -10/Subcaves | Met a Zionite searching for "candidates" 1911 | -10/Subcaves | Learned location of Mines (-9) 1970 | -10/Subcaves | Core integrity fell below 20% 2011 | -10/Subcaves | Destroyed by XG-MYL(R) with Subdweller Machine Gun Last Messages --------------- GOAL=ESCAPE 01789_ Dropped Sml. Storage Unit. 01790_ Subatomizers dissect the Sml. Storage Unit. 01839_ Subatomizers dissect the Sml. Storage Unit, destroying it. 01848_ EF-PUD(z): "She is not going to be happy we haven't found any suitable candidates yet." 01859_ EF-PUD(z): "Hey you! It's really dangerous down here, I feel that you could die at any moment. For your health and safety might I suggest a trip to Zion?" World map updated: -7/Zion. 01870_ System corrupted: FCS attempts to trigger Rocket Launcher. 01870_ System corrupted: Rocket Launcher misfires. 01885_ System corrupted: Heat flow error (+212). 01911_ Acquired derelict log, extracted data. World map updated: -9/Mines. 01980_ Lgt. Nuclear Core destroyed. 01985_ Destroyed Scrap Shield. 01987_ FZ-6ZI(R) destroyed. 01998_ VTOL Module destroyed. 02000_ Rocket Launcher destroyed. Map ----- +----------------------------------------------------+ | ????????????????????????????????????????????????? | | ????????????????????????????????????????????????? | | ????????????????????????????????????????????????? | | ????????????????????????????????????????????????? | | ????????????????????????????????????????????????? | | ????????????????????????????????????????????????? | | ????????????????????????????????????????????????? | | ????????????????????????????????????????????????? | | ????????????????????????????????????????????????? | | ????????????????????????????????????????????????? | | ??????????????????????? ??????????????????????? | | ????????????????????? ? #??????????????????? | | ???????????????????? #??????????????????? | | ????????????????????# #??????????????????? | | ?????????????????#### ??????????????????? | | ????????????????## # #??????????????????? | | ????????????????# ???????????????????? | | ???????????????## & # ???????????????????? | | ???????????????# & #???????????????????? | | ???????????????# ####????????????????? | | ???????????????# #????????????????? | | ????????????????? #????????????????? | | ??????????????????? #?????????????????? | | ????????????????????# R #??????????????????? | | ?????????????????????# ###????????????????? | | ??????????????????????# @ ##???????????????? | | ??????????????????????## #???????????????? | | ??????????????????????# #???????????????? | | ????????????????????### #???????????????? | | ?????????????????#### #### ##???????????????? | | ?????????????????# #???#????????????????? | | ?????????????????# ## #????????????????????? | | ?????????????????## ### ##???????????????????? | | ??????????????????# ?## ##??????????????????? | | ?#######??????????# ## #??????????????????? | | ## # #?????????## #??????????????????? | | #?????????# ####??????????????????? | | ##?????????# ###?????????????????????? | | ##????????# #???????????????????????? | | ##???????#### #???????????????????????? | | ### ######???### #???????????????????????? | | ##?# ##?## ##???????????????????????? | | #??## ## ### #????????????????????????? | | #???## # ### ## #???????????????????????? | | ##????# # ## #??????????????????????? | | ###??# ## ## # #??????????????????????? | | #??##?### ### ?????????????????????? | | #????## ##?# ????????????????????? | | #??## # # #??# "???????????????????? | | ### ### ? ??????????????????? | +----------------------------------------------------+ Best States ------------- Heat Dissipation 35 Energy Generation 14 Energy Capacity 250 Matter Stores 300 Matter Capacity 300 Sight Range 16 Terrain Scan Density 10 Evasion (%) 50 Recoil Reduction 1 Item Schematics ----------------- None Robot Schematics ------------------ None Fabricated ------------ Nothing Alien Tech Used ----------------- None Achievements -------------- None Challenges ------------ None Game ------ Seed kitarik Manual? 1 Play Time 00:26:18 Cumulative 9.4 hours Start 2024.09.23 @ 23:16:04 End 2024.09.23 @ 23:41:36 Sessions 2 Manual Loads 0 Difficulty Rogue Special Mode None Game No. 29 Rogue 29 Adventurer 0 Explorer 0 Win Type - Total 0 Types 0/0/0/0/0/0/0/0/0 Lore% 8 Gallery% 14 Achievement% 15 Wizard Run 0 Options --------- Layout 0 ASCII 0 Keyboard 0 Movement Mouse Keybinds 0 Fullscreen 1 Font 18/SmallcapsGlow Map View 76x50 Zoom Use 2% Tactical HUD 1 Map Filters NONE Filters NONE Steam 1 RUN: 7e9854db-ffd8-4715-b4c2-18216730ec44